Cogmind - Beta 15 @@@ ROGUE MODE // 2025.07.22 @ 23:16:59 Player: shapeshifter Result: Destroyed by as-08785 with Assembled Blade Performance ------------- Evolutions (1) 500 Regions Visited (3) 600 Robots Destroyed (30) 150 Value Destroyed (862) 862 Prototype IDs (0) 0 Alien Tech Used (0) 0 Bonus (35) 35 TOTAL SCORE: 2147 Bonus ------- Follower Combat Kills 35 Cogmind --------- Core Integrity 0/400 Matter 240/300 Energy 100/100 System Corruption 0% Temperature Cool (0) Movement Core (50) Location -9/Mines Parts ------- > --- POWER (1) -------- (None) > --- PROPULSION (2) --- (None) > --- UTILITY (2) ------ (None) > --- WEAPON (4) ------- Grenade Launcher > --- INVENTORY (5) ---- Light Nuclear Core Large Storage Unit Large Matter Pod (63) Light Armor Plating Datajack Peak State ------------ > --- POWER ------------ Light Nuclear Core > --- PROPULSION ------- Light Treads Light Treads > --- UTILITY ---------- Large Storage Unit Improved Terrain Scanner > --- WEAPON ----------- EM Pulse Gun Light EM Pulse Cannon Assault Rifle Rocket Launcher > --- INVENTORY -------- Ion Engine Wheel Large Matter Pod Light Armor Plating Hardened Light Armor Plating Light EM Pulse Cannon Grenade Launcher Datajack [Rating: 16] Favorites ----------- Power Light Nuclear Core Engine Ion Engine Power Core Light Nuclear Core Propulsion Light Treads Treads Light Treads Wheel Wheel Utility Large Storage Unit Device Improved Terrain Scanner Storage Large Storage Unit Protection Hardened Light Armor Plating Weapon Assault Rifle Energy Gun EM Pulse Gun Energy Cannon Light EM Pulse Cannon Ballistic Gun Assault Rifle Launcher Rocket Launcher Build | -11 -10 -9 -9 ------- Run | Yrd Mat Mat Min Slots Evolved 2 | . . 2 . Power . | . . . . Propulsion . | . . . . Utility . | . . . . Weapon 2 | . . 2 . Parts Attached 29 | 7 8 7 7 Power 5 | 1 2 1 1 Engine 4 | 1 1 1 1 Core 1 | . 1 . . Reactor . | . . . . Propulsion 8 | 2 3 1 2 Treads 5 | 2 3 . . Leg . | . . . . Wheel 3 | . . 1 2 Hover . | . . . . Flight . | . . . . Utility 5 | 2 1 1 1 Device 2 | 1 . 1 . Storage 2 | 1 1 . . Processor . | . . . . Hackware . | . . . . Protection 1 | . . . 1 Artifact . | . . . . Weapon 11 | 2 2 4 3 Energy Gun 1 | . 1 . . Energy Cannon 4 | . . 1 3 Ballistic Gun 3 | 2 . 1 . Ballistic Cannon . | . . . . Launcher 3 | . 1 2 . Special Weapon . | . . . . Impact Weapon . | . . . . Slashing Weapon . | . . . . Piercing Weapon . | . . . . Special Melee Weapon . | . . . . Unidentified Prototypes . | . . . . Parts Lost 20 | . 5 1 14 Power 2 | . . . 2 Propulsion 6 | . 1 1 4 Utility 2 | . 1 . 1 Weapon 10 | . 3 . 7 Highest Loss Streak 12 | . 5 1 12 To Critical Strikes . | . . . . Average Backups 7 | 4 7 9 6 Power 1 | . . 1 1 Propulsion 1 | 2 2 1 . Utility 2 | . 2 2 2 Weapon 1 | . 1 3 1 Tool/Special . | . . . . Unused Backups 7 | . 3 . 4 Power 1 | . . . 1 Propulsion 3 | . 3 . . Utility 2 | . . . 2 Weapon . | . . . . Tool/Special 1 | . . . 1 Average Slot Usage (%) 75 | . 90 97 44 Engine 5 | . 11 . 3 Core 4 | . 2 10 . Treads 14 | . 27 16 3 Wheel 3 | . . 5 3 Device 7 | . 10 11 3 Storage 10 | . 14 11 8 Protection 2 | . . . 7 Energy Gun 4 | . 2 11 1 Energy Cannon 4 | . . 9 5 Ballistic Gun 10 | . 20 10 2 Launcher 5 | . . 10 6 Peak Build Rating 16 | 7 8 16 16 Average Rating 9 | 5 7 15 6 On Entrance 7 | . 7 8 15 Naked Turns . | . . . . Heaviest Build 42 | 13 27 40 42 Greatest Support 40 | 40 40 40 10 Greatest Overweight (x) 8 | . . 3 8 Average Overweight (x) 1 | . . 1 3 Largest Inventory Capacity 15 | 8 15 15 15 Average Capacity 11 | 7 8 15 12 Most Carried 11 | 7 8 11 10 Average Carried 7 | 4 7 9 6 Final Capacity 15 | 8 15 15 5 Final Carried 11 | 7 8 11 5 Class Distribution -------------------- 62% | Mutant 37% | Skirmisher Dominant Class ---------------- Mutant | -10/Materials Skirmisher | -9/Materials Mutant | -9/Mines Resources | -11 -10 -9 -9 ----------- Run | Yrd Mat Mat Min Matter Collected 810 | 293 110 193 214 Remotely . | . . . . Salvage Created 874 | 89 326 184 275 Parts 44 | 4 17 11 12 Haulers Intercepted . | . . . . Recyclers Shooed . | . . . . Parts Field Recycled . | . . . . Retrieved Matter . | . . . . Parts Self-Destructed . | . . . . Prevented . | . . . . Kills | -11 -10 -9 -9 ------- Run | Yrd Mat Mat Min Combat Hostiles Destroyed 24 | . 11 5 8 Guns 7 | . 5 1 1 Cannons 3 | . . 2 1 AOE 14 | . 6 2 6 Classes Destroyed 7 | 2 2 3 . Worker 2 | . . 1 1 Builder 2 | . . 2 . Tunneler 1 | 1 . . . Recycler 1 | 1 . . . Swarmer 3 | . 3 . . Grunt 20 | . 8 4 8 Sentry 1 | . . 1 . Best Kill Streak 7 | 2 7 3 6 Combat Bots Only 7 | . 7 2 5 Max Kills in Single Turn 3 | 1 3 2 2 Gunslinging . | . . . . Exploded 3 | . 3 1 1 Melee . | . . . . Uniques/NPCs Destroyed . | . . . . Combat | -11 -10 -9 -9 -------- Run | Yrd Mat Mat Min Hostile Shots Fired 158 | . 103 14 41 Missed 37 | . 27 1 9 Hits 121 | . 76 13 32 Melee 4 | . . . 4 Projectile 117 | . 76 13 28 AOE 26 | . . . 26 Critical Strikes 1 | . . . 1 Damage Taken 2733 | . 1123 265 1345 Core 646 | . 237 26 383 Absorbed by Shields . | . . . . Core Remaining (%) 52 | 100 5 . . Volleys Fired 49 | 4 24 9 12 Largest 4 | 2 2 4 4 Hottest 165 | 40 40 149 165 Shots Fired 116 | 8 44 33 31 Gun 75 | 8 41 16 10 Cannon 21 | . . 8 13 Launcher 20 | . 3 9 8 Special . | . . . . Kinetic 63 | 8 40 8 7 Thermal . | . . . . Explosive 20 | . 3 9 8 Electromagnetic 33 | . 1 16 16 Robot Hit Streak 7 | 5 6 4 7 Robot Miss Streak 5 | 2 5 1 2 Penetration Max . | . . . . Secondary Targets . | . . . . Shots Hit Robots 63 | 5 26 14 18 Core Hits 55 | 3 19 17 16 Critical Kills . | . . . . Critical Parts Destroyed . | . . . . Critical Strikes 2 | . . . 2 Corrupt 2 | . . . 2 Melee Attacks . | . . . . Impact . | . . . . Slashing . | . . . . Piercing . | . . . . Sneak Attacks . | . . . . Combat Hostiles . | . . . . Follow-up Attacks . | . . . . Damage Inflicted 1956 | 59 733 442 722 Guns 513 | 59 318 74 62 Cannons 244 | . . 69 175 Explosions 1194 | . 415 294 485 Melee . | . . . . Ramming 5 | . . 5 . Kinetic 440 | 59 306 36 39 Thermal . | . . . . Explosive 1194 | . 415 294 485 Electromagnetic 317 | . 12 107 198 Impact . | . . . . Slashing . | . . . . Piercing . | . . . . Highest Corruption 5 | . 5 . . Average Corruption 5 | . 5 . . Corruption Purged . | . . . . Corruption Blocked . | . . . . Effects 3 | . 3 . . Matter Fused 2 | . 2 . . Heat Flow Errors 1 | . 1 . . Overload Shots . | . . . . Overflow Damage 22 | . 6 16 . Projectiles . | . . . . Explosions 22 | . 6 16 . Melee . | . . . . Knockbacks . | . . . . Impact . | . . . . Kinetic . | . . . . Secondary . | . . . . Self-Inflicted Damage 311 | . 57 103 151 Shots 9 | . 2 3 4 Rammed 2 | . . 2 . Targets Rammed 2 | . . 2 . Kicked . | . . . . Crushed . | . . . . Highest Temperature 309 | . 115 309 239 Average Temperature 95 | . 29 114 97 Received Heat Transfer 387 | . 294 60 33 Siege Activations . | . . . . Martial Activations . | . . . . Shielding Activations . | . . . . Robots Disrupted . | . . . . Combat Hostiles . | . . . . Robots Corrupted . | . . . . Combat Hostiles . | . . . . Parts Fried . | . . . . Impact Corruptions . | . . . . Robots Melted . | . . . . Combat Hostiles . | . . . . Parts Melted . | . . . . Heat Transferred . | . . . . Parts Sabotaged . | . . . . Parts Stolen . | . . . . Parts Stripped . | . . . . Power Chain Reactions . | . . . . Alert | -11 -10 -9 -9 ------- Run | Yrd Mat Mat Min Maximum Alert Level . | . . . . Low Security (%) 100 | 100 100 100 100 Level 1 . | . . . . Level 2 . | . . . . Level 3 . | . . . . Level 4 . | . . . . Level 5 . | . . . . High Security . | . . . . Max Security . | . . . . Peak Influence 176 | 10 176 115 162 Initial 54 | . . 54 41 Average 40 | 1 47 32 50 Influence Increases 852 | 10 286 261 295 Destroy 0b10 Robot/C 500 | . 220 100 180 Destroy 0b10 Robot/NC 30 | 10 . 15 5 Destroy Leader 110 | . 50 30 30 Allied During Kill 7 | . . . 7 Successful Hack 16 | . . 16 . Disable Machine 45 | . . 30 15 Destroy Structure 144 | . 16 70 58 Influence Decreases 804 | 10 156 284 354 Entered New Map 142 | . . 76 66 Time Decay 486 | 10 136 204 136 Lost Part 156 | . 20 4 132 Lost Ally 20 | . . . 20 Squads Dispatched 4 | . 2 2 . Investigation 3 | . 1 2 . Extermination . | . . . . Reinforcement 1 | . 1 . . Assault . | . . . . Garrison . | . . . . Intercept . | . . . . Searches Triggered . | . . . . Construction Impeded . | . . . . Haulers Reinforced . | . . . . Active Scanning Responses . | . . . . Cargo Convoy Interrupts . | . . . . Stealth | -11 -10 -9 -9 --------- Run | Yrd Mat Mat Min Distress Signals 6 | . 4 2 . Communications Jammed . | . . . . Distress Signals . | . . . . Times Spotted 36 | . 15 9 12 Peak Tracking Total 9 | . 9 5 3 Tactical Retreats . | . . . . Traps | -11 -10 -9 -9 ------- Run | Yrd Mat Mat Min Traps Triggered 1 | . 1 . . Indirectly . | . . . . Trap Hack Attempts . | . . . . Triggered . | . . . . Disarmed . | . . . . Reprogrammed . | . . . . Reused . | . . . . Traps Extracted . | . . . . Installed . | . . . . Triggered . | . . . . Machines | -11 -10 -9 -9 ---------- Run | Yrd Mat Mat Min Machines Disabled 3 | . . 2 1 Max in Single Turn 1 | . . 1 1 Machines Repaired . | . . . . Machines Dismantled . | . . . . Machines Sabotaged . | . . . . Overloaded Fab Kills . | . . . . Hacking | -11 -10 -9 -9 --------- Run | Yrd Mat Mat Min Machines Accessed 3 | . . 3 . Terminals 3 | . . 3 . Fabricators . | . . . . Repair Stations . | . . . . Recycling Units . | . . . . Scanalyzers . | . . . . Garrison Access . | . . . . Total Hacks 9 | . . 9 . Successful 4 | . . 4 . Failed 5 | . . 5 . Catastrophic . | . . . . Database Lockouts . | . . . . Manual 6 | . . 6 . Terminals 9 | . . 9 . Fabricators . | . . . . Repair Stations . | . . . . Recycling Units . | . . . . Scanalyzers . | . . . . Garrison Access . | . . . . Terminal Hacks 2 | . . 2 . Branch Access Points 1 | . . 1 . Zone Layout 1 | . . 1 . Fabricator Hacks . | . . . . Repair Station Hacks . | . . . . Recycling Unit Hacks . | . . . . Scanalyzer . | . . . . Garrison Access Hacks . | . . . . Unauthorized Hacks 2 | . . 2 . Terminals 2 | . . 2 . Botnet 2 | . . 2 . Fabricators . | . . . . Repair Stations . | . . . . Recycling Units . | . . . . Scanalyzers . | . . . . Garrison Access . | . . . . Data Cores Recovered . | . . . . Used . | . . . . Hacking Detections 3 | . . 3 . Full Trace Events 2 | . . 2 . Feedback Events . | . . . . Feedback Blocked . | . . . . Robot Schematics Acquired . | . . . . Robots Built . | . . . . Authchips . | . . . . Time . | . . . . Total Robot Build Rating . | . . . . Part Schematics Acquired . | . . . . Parts Built . | . . . . Authchips . | . . . . Time . | . . . . Total Part Build Rating . | . . . . Parts Repaired . | . . . . Time . | . . . . Parts Recycled . | . . . . Recycled Matter . | . . . . Retrieved Matter . | . . . . Retrieved Components . | . . . . Parts Scanalyzed . | . . . . Part Schematics Acquired . | . . . . Parts Damaged . | . . . . Bothacking | -11 -10 -9 -9 ------------ Run | Yrd Mat Mat Min Used RIF Installer . | . . . . Robots Hacked . | . . . . Non-combat . | . . . . Combat . | . . . . Robot Hacks Applied . | . . . . Relay Couplers Released . | . . . . Fabnet Peak Effective % . | . . . . Robots Rewired . | . . . . Allies Hacked . | . . . . Hacks Repelled . | . . . . Allies | -11 -10 -9 -9 -------- Run | Yrd Mat Mat Min Total Allies 2 | . . . 2 Largest Group 2 | . . . 2 Highest-Rated Group 52 | . . . 52 Highest-Rated Ally 31 | . . . 31 Total Orders . | . . . . Ally Attacks 7 | . . . 7 Total Damage 107 | . . . 107 Kills 1 | . . . 1 Allies Corrupted . | . . . . Allies Melted . | . . . . Intel | -11 -10 -9 -9 ------- Run | Yrd Mat Mat Min Active Infowar (turns) 927 | 27 309 444 147 Terrain 591 | . . 444 147 Seismic 336 | 27 309 . . Robot Analysis Total . | . . . . Derelict Logs Recovered . | . . . . Drone Launches . | . . . . Drone Recoveries . | . . . . Exploration | -11 -10 -9 -9 ------------- Run | Yrd Mat Mat Min Turns Passed 1518 | 125 425 444 524 Spaces Moved 694 | 66 205 192 231 Core 154 | 11 . . 143 Treads 379 | 55 205 119 . Legs . | . . . . Wheels 161 | . . 73 88 Hover . | . . . . Flight . | . . . . Fastest Speed 50 | 50 160 125 110 Average Speed 169 | 141 160 147 203 Slowest Speed 450 | 160 160 240 450 Overloaded Moves . | . . . . Propulsion Burnouts . | . . . . Robots Hopped . | . . . . Potential Cave-ins . | . . . . Cave-ins Triggered 1 | . 1 . . Exploration Rate (%) 30 | 4 41 16 60 Regions Visited 3 Branch Regions 1 Pre-discovered Areas . | . . . . Known Exits Taken 1 | . . 1 . Unknown Exits Taken 2 | 1 1 . . Scrap Searched . | . . . . Spaces Dug 7 | . . 7 . Terrain Destroyed 171 | . 17 76 78 Melee . | . . . . Projectile . | . . . . AOE 171 | . 17 76 78 Terrain Rammed . | . . . . Walls Destroyed . | . . . . Machines Disabled . | . . . . Actions | -11 -10 -9 -9 --------- Run | Yrd Mat Mat Min Total 942 | 90 260 329 263 Wait 124 | . 4 112 8 Move 691 | 65 204 191 231 Hop . | . . . . Pick Up 36 | 14 12 8 2 Fast Attach . | . . . . Attach 23 | 7 3 5 8 Detach 1 | . . . 1 Swap 7 | . 5 2 . Drop 9 | . 8 . 1 Fire 49 | 4 24 9 12 Melee . | . . . . Ram 2 | . . 2 . Kick . | . . . . Crush . | . . . . Escape Stasis . | . . . . Rewire . | . . . . Trap . | . . . . Miscellaneous . | . . . . Route ------- -11/Scrapyard -10/Materials -9/Materials (discovered 2 exits: *Min x2) -9/Mines History --------- Turn | Location | Event 16 | -11/Scrapyard | Discovered new exit (range 16) 126 | -11/Scrapyard | Entered Materials 306 | -10/Materials | Build established: Mutant 457 | -10/Materials | Crushed by falling debris 457 | -10/Materials | Core integrity fell below 50% 457 | -10/Materials | Core integrity fell below 20% 482 | -10/Materials | Destroyed 7 combat bots 488 | -10/Materials | Lost 5 parts (1n1u3w) 494 | -10/Materials | Discovered new exit (range 16) 551 | -10/Materials | Entered another Materials area 551 | -9/Materials | Evolved 2 slots: Weapon x2 719 | -9/Materials | Discovered new exit (range 7) 859 | -9/Materials | Build established: Skirmisher 969 | -9/Materials | Discovered new exit (range 13) 972 | -9/Materials | Identified exit to Mines 995 | -9/Materials | Entered Mines 1089 | -9/Mines | Assembled infested the area 1147 | -9/Mines | Core integrity fell below 50% 1153 | -9/Mines | Core integrity fell below 20% 1181 | -9/Mines | Lost 12 parts (2p3n1u6w) 1413 | -9/Mines | Build established: Mutant 1519 | -9/Mines | Destroyed by as-08785 with Assembled Blade Last Messages --------------- 01140_ Lgt. Treads destroyed. 01142_ The unstable cave ceiling collapses. 01142_ Imp. Terrain Scanner destroyed. 01142_ Wheel destroyed. 01144_ Lgt. EM Pulse Cannon destroyed. 01145_ The unstable cave ceiling collapses. 01146_ D-53 Grenadier IFF system glitched. 01147_ The unstable cave ceiling collapses. 01150_ Lgt. EM Pulse Cannon destroyed. 01150_ Ion Engine destroyed. 01151_ The unstable cave ceiling collapses. 01152_ D-53 Grenadier destroyed. 01153_ The unstable cave ceiling collapses. 01154_ D-53 Grenadier destroyed. 01158_ The unstable cave ceiling collapses. 01367_ G-34 Mercenary destroyed. 01371_ G-47 Trooper destroyed. 01371_ Plasma Injector explodes. 01383_ The unstable cave ceiling collapses. 01517_ Hrd. Light Armor Plating severed. Map ----- +----------------------------------------------------+ | ????# #### #???????## ## | | ???## #????????## ## | | ???# ##????????### | | ???# ##?????????# | | ???## ### #????????## | | ????### ##?## ##??????## | | ??????## ###??## #????#?## | | ???????####???### #????### | | ??????????????# #???## | | ????????####### #?### # | | ????????# ##?# # # | | ????????# ######??# # # | | ????????# #######?####### # # # | | ????????# #???????# | | ????????# #???????# #### ## # | | ????????# #???????# #??# # # | | ????????# #???????# ##?## # # | | ????????# #????#### #???##### # ## | | ????????# #??### #???????#####? | | ????????# #?## #????????????? | | ????????# #?# ##???????????? | | ????????# #?# """ ##??????????? | | ????????# #?## """ ##?????????? | | ??????### ##?# """ ##????????? | | ??????# #?## #??????#?? | | ??????# @ #??# #????????? | | ??????# a ## #????????? | | ??????# ## #????????? | | ??????# %[ #### #### #????????? | | ??????;# % #??###?## ##????????? | | ????? ######## ##????????? | | ???? $ #????????? | | ??? ! #????????? | | ??# * ######### ##????????? | | ??# [ #???????####?????????? | | ??# #????????????????????? | | ??##"; ; ##????????????????????? | | ?????######??????????????????????? | | ?????????????????????????????????? | | ?????????????????????????????????? | | | | | | | | | | | | | | | | | | | | | +----------------------------------------------------+ Best States ------------- Heat Dissipation 28 Energy Generation 14 Energy Capacity 265 Matter Stores 300 Matter Capacity 300 Sight Range 16 Terrain Scan Range 16 Terrain Scan Density 10 Armor Coverage 150 Evasion (%) 50 Recoil Reduction 2 Item Schematics ----------------- None Robot Schematics ------------------ None Fabricated ------------ Nothing Repaired ---------- Nothing Alien Tech Used ----------------- None Achievements -------------- None Challenges ------------ None Game ------ Seed UltimateFrostPick Manual? 0 Play Time 00:12:18 Cumulative 35.5 hours Start 2025.07.22 @ 23:07:29 End 2025.07.22 @ 23:16:59 Sessions 1 Manual Loads 0 Difficulty Rogue Special Mode None Game No. 90 Rogue 90 Adventurer 0 Explorer 0 Win Type - Total 0 Types 0/0/0/0/0/0/0/0/0/0 Lore% 33 Gallery% 33 Achievement% 26 Wizard Run 0 Options --------- Layout 1 ASCII 0 Keyboard 0 Movement Mouse Keybinds 0 Fullscreen 1 Font 24/Smallcaps Map View 50x35 Zoom Use 0% Tactical HUD 1 Map Filters NONE Filters NONE Steam 1 RUN: c831b13d-5f7d-4a74-a916-73eb1ae74969